bitfinex/quotes_SOLUSD_20251006
["timestamp","ask_amount","ask_price","bid_price","bid_amount"]
[1759785695237,15.88390446,233.24,233.23,30.36]
[1759785695537,11.59647521,233.24,233.23,30.36]
[1759785695915,10.87647521,233.24,233.23,30.36]
[1759785696428,15.87390446,233.24,233.23,30.36]
[1759785697936,11.58647521,233.24,233.23,30.36]
[1759785698617,11.58647521,233.24,233.23,30.32]
[1759785699421,10.87647521,233.24,233.23,30.32]
[1759785699823,10.87647521,233.23,233.22,33.42]
[1759785700024,11.58647521,233.23,233.22,63.74]
[1759785700430,11.58647521,233.23,233.22,33.42]
[1759785700627,11.58647521,233.23,233.22,63.74]
[1759785701448,15.87408829,233.23,233.22,63.74]
[1759785702844,15.87408829,233.23,233.22,33.42]
[1759785703024,15.87408829,233.23,233.22,63.74]
[1759785705726,10.87647521,233.24,233.22,63.74]
[1759785708551,4.28750253,233.24,233.22,63.74]
[1759785709354,4.28750253,233.24,233.22,30.32]
[1759785711448,15.1637345,233.25,233.22,30.32]
[1759785711651,0.67,233.24,233.22,30.32]
[1759785712534,94.8637345,233.25,233.22,30.32]
[1759785712739,95.5337345,233.25,233.22,30.32]
[1759785714461,15.8337345,233.25,233.22,30.32]
[1759785714756,10.87647521,233.26,233.22,31.04]
[1759785715461,90.57647521,233.26,233.22,31.04]
[1759785715662,95.53353685,233.26,233.22,30.32]
[1759785715960,96.73164841,233.26,233.22,30.32]
[1759785716147,97.40164841,233.26,233.22,30.32]
[1759785716544,94.86353685,233.26,233.22,31.04]
[1759785716867,95.53353685,233.26,233.22,30.32]
[1759785718577,90.57647521,233.26,233.23,0.72]
[1759785718755,90.57647521,233.26,233.24,1.86811156]
[1759785718968,90.57647521,233.26,233.25,31.12]
[1759785719639,90.57647521,233.26,233.25,30.4]
[1759785720259,95.53353685,233.26,233.25,30.4]
[1759785720476,98.45274432,233.26,233.25,30.4]
[1759785721244,29.47039843,233.26,233.15,16.94917355]
[1759785721453,2.91920747,233.2,233.16,30.4]
[1759785721771,3.58920747,233.2,233.16,30.4]
[1759785722451,3.58920747,233.2,233.15,16.94917355]
[1759785722652,3.58920747,233.2,233.16,30.4]
[1759785722979,10.87647521,233.18,233.16,30.4]
[1759785724778,90.57647521,233.17,233.16,30.4]
[1759785727661,10.87647521,233.16,233.15,16.94917355]
[1759785727866,11.54647521,233.16,233.15,47.30917355]
[1759785728887,15.83537553,233.16,233.15,47.30917355]
[1759785730497,10.87647521,233.12,233.07,8.19938603]
[1759785730694,56.75082645,233.11,233.08,0.72]
[1759785731063,56.75082645,233.11,233.08,3.80884483]
[1759785731263,56.75082645,233.11,233.09,0.72]
[1759785731478,67.62730166,233.11,233.1,30.38]
[1759785732180,67.62730166,233.11,233.07,0.1]
[1759785732181,10.87647521,233.1,233.07,0.1]
[1759785732480,11.41272574,233.1,233.08,30.38]
[1759785732659,10.87647521,233.08,233.07,0.1]
[1759785732864,36.50314416,233.08,233.07,30.52]
[1759785733065,53.23992566,233.08,233.07,30.52]
[1759785734156,50.15108083,233.08,233.07,0.1]
[1759785734484,31.67647521,233.03,232.99,22.3]
[1759785734673,13.96532004,233.01,233.0,22.3]
[1759785735190,10.87647521,233.01,233.0,22.3]
[1759785735385,11.54647521,233.01,233.0,22.3]
[1759785735971,10.87647521,233.01,233.0,23.02]
[1759785736169,10.87647521,233.01,233.0,22.3]
[1759785736665,10.87647521,233.02,233.0,22.3]
[1759785737080,10.87647521,233.02,233.0,26.59183707]
[1759785737384,10.87647521,233.04,233.0,26.59183707]
[1759785738101,13.96962031,233.04,233.0,27.26183707]
[1759785739299,13.96962031,233.04,233.01,0.67]
[1759785739504,0.67,233.06,233.0,26.59183707]
[1759785739505,10.87647521,233.05,233.0,26.59183707]
[1759785739796,4.3495337,233.04,233.01,30.66]
[1759785741282,0.5363886,233.04,233.02,0.67]
[1759785741483,10.87647521,233.08,233.01,34.9516613]
[1759785741484,10.87647521,233.08,233.03,0.67]
[1759785741690,10.87647521,233.08,233.04,31.33]
[1759785742692,3.0931451,233.1,233.05,0.67]
[1759785742693,10.87647521,233.1,233.05,0.67]
[1759785742878,10.87647521,233.1,233.06,0.67]
[1759785743077,10.87647521,233.1,233.07,30.64]
[1759785743889,21.33620452,233.12,233.07,30.64]
[1759785744195,31.67647521,233.11,233.07,31.31]
[1759785744395,32.93270274,233.11,233.07,30.64]
[1759785744571,32.39647521,233.11,233.07,30.64]
[1759785744772,12.13270274,233.11,233.07,30.64]
[1759785745276,11.41270274,233.11,233.07,35.60054374]
[1759785745789,10.87647521,233.11,233.07,35.60054374]
[1759785747693,10.87647521,233.11,233.07,4.46054374]
[1759785747892,10.87647521,233.11,233.07,0.67]
[1759785748096,10.87647521,233.09,233.07,0.67]
[1759785748282,10.87647521,233.09,233.05,4.96083323]
[1759785748483,10.87647521,233.09,233.06,0.67]
[1759785748885,10.87647521,233.09,233.07,30.62]
[1759785750595,10.87647521,233.09,233.07,34.9105064]
[1759785750893,73.7,233.1,233.07,35.5805064]
[1759785752289,73.7,233.1,233.07,30.62]
[1759785752679,73.7,233.1,233.07,34.91045794]
[1759785752889,73.7,233.1,233.07,35.58045794]
[1759785753776,10.87647521,233.18,233.08,0.67]
[1759785754501,0.72,233.21,233.08,0.67]
[1759785754684,10.87647521,233.19,233.09,15.01565917]
[1759785754885,10.87647521,233.19,233.1,31.29]
[1759785755201,10.87647521,233.19,233.11,0.67]
[1759785755403,11.41254176,233.18,233.1,30.62]
[1759785755587,10.87647521,233.11,233.1,30.62]
[1759785755795,11.59647521,233.11,233.1,30.62]
[1759785756188,14.68962031,233.11,233.1,30.62]
[1759785756802,18.97944056,233.11,233.1,30.62]
[1759785757011,19.51566809,233.11,233.1,30.62]
[1759785759127,31.67647521,233.07,232.98,17.24173554]
[1759785759315,31.67647521,233.07,232.99,29.52]
[1759785759316,10.87647521,233.05,232.99,29.52]
[1759785759515,20.8,233.07,232.99,29.52]
[1759785759516,3.0931451,233.01,232.99,29.52]
[1759785759830,0.53643464,233.02,232.99,29.52]
[1759785760014,0.67,233.03,232.99,29.52]
[1759785760219,10.87647521,233.04,232.99,30.23]
[1759785760526,20.8,233.07,233.0,0.71]
[1759785760738,10.87647521,233.07,233.0,0.71]
[1759785761113,31.67647521,233.05,233.0,0.71]
[1759785762106,0.67,233.04,232.99,29.52]
[1759785762423,34.76962031,233.05,232.99,30.23]
[1759785762618,3.0931451,233.04,232.99,30.23]
[1759785762821,34.76962031,233.05,232.99,30.23]
[1759785763027,31.67647521,233.05,232.99,30.23]
[1759785763234,4.29110882,233.04,232.99,30.23]
[1759785764123,4.96110882,233.04,232.99,30.23]
[1759785764806,4.29110882,233.04,232.99,30.23]
[1759785765221,4.29110882,233.04,232.99,29.52]
[1759785765222,13.96962031,233.02,232.99,29.52]
[1759785765428,14.63962031,233.02,232.99,29.52]
[1759785765648,0.67,233.07,233.0,0.71]
[1759785765822,10.87647521,233.04,233.0,0.71]
[1759785766020,10.87647521,233.04,232.99,29.52]
[1759785766021,10.87647521,233.04,233.01,0.71]
[1759785766221,10.87647521,233.04,232.99,29.52]
[1759785766222,10.87647521,233.04,232.99,30.23]
[1759785766418,10.87647521,233.04,233.0,0.71]
[1759785768329,11.56647521,233.0,232.99,29.52]
[1759785768652,14.65962031,233.0,232.99,29.52]
[1759785768831,11.56647521,233.0,232.99,29.52]
[1759785769035,14.65962031,233.02,232.99,29.52]
[1759785769245,15.1683207,233.0,232.99,29.52]
[1759785769626,15.8583207,233.0,232.99,29.52]
[1759785769950,10.87647521,233.0,232.99,29.52]
[1759785770264,7.38470007,233.02,232.99,29.52]
[1759785770425,0.69,233.0,232.99,29.52]
[1759785771355,11.56647521,233.0,232.99,29.52]
[1759785772666,10.87647521,233.0,232.99,29.52]
[1759785774355,10.87647521,233.02,232.99,30.23]
[1759785775043,11.56647521,233.02,232.99,29.52]
[1759785775846,10.87647521,233.02,232.99,29.52]
[1759785780172,15.16795988,233.02,232.99,29.52]
[1759785781261,10.87647521,233.0,232.98,17.24173554]
[1759785781572,10.87647521,233.0,232.99,30.56]
[1759785782075,21.49,233.03,232.99,30.56]
[1759785782377,10.87647521,233.01,232.99,30.56]
[1759785782556,11.56647521,233.0,232.99,30.56]
[1759785783888,10.87647521,233.0,232.99,30.56]
[1759785786088,10.87647521,233.0,232.98,17.24173554]
[1759785786268,11.41295589,233.0,232.98,16.10173554]
[1759785786584,17.14801448,232.99,232.98,16.10173554]
[1759785786784,17.14801448,232.99,232.98,46.66173554]
[1759785787477,17.14801448,232.99,232.96,30.56]
[1759785787478,31.67647521,232.97,232.96,30.56]
[1759785787782,10.87647521,232.96,232.92,0.1]
[1759785787984,15.02210395,232.99,232.92,0.1]
[1759785787985,33.65598478,232.93,232.92,0.1]
[1759785788178,35.96961048,232.93,232.92,19.08]
[1759785788371,35.96961048,232.93,232.82,33.44]
[1759785788372,20.8,232.85,232.84,0.71]
[1759785788571,10.87647521,232.88,232.84,31.45]
[1759785788766,10.87647521,232.88,232.85,0.71]
[1759785789376,10.87647521,232.88,232.84,30.74]
[1759785789687,10.87647521,232.88,232.85,0.71]
[1759785789879,31.67647521,232.9,232.86,0.71]
[1759785790058,31.67647521,232.9,232.87,31.45]
[1759785790259,11.41320929,232.89,232.88,30.74]
[1759785790490,13.39271886,232.89,232.88,30.74]
[1759785790971,31.67647521,232.83,232.82,33.44]
[1759785791174,10.87647521,232.83,232.82,64.91]
[1759785791479,10.87647521,232.83,232.82,64.2]
[1759785792183,0.53680322,232.86,232.82,64.91]
[1759785792366,10.87647521,232.85,232.82,64.91]
[1759785792769,0.53673408,232.89,232.83,0.71]
[1759785793069,10.87647521,232.89,232.83,0.71]
[1759785793276,34.19271886,232.89,232.83,0.71]
[1759785793961,32.21320929,232.89,232.83,0.71]
[1759785794178,36.50715301,232.89,232.83,0.71]
[1759785794364,38.48666258,232.89,232.83,0.71]
[1759785794564,32.21320929,232.89,232.83,0.71]
[1759785794765,10.87647521,232.89,232.83,5.00492078]
[1759785794970,10.87647521,232.89,232.84,0.71]
[1759785795170,10.87647521,232.89,232.85,30.78]
[1759785795580,10.87647521,232.89,232.86,0.71]
[1759785796891,10.87647521,232.89,232.87,0.71]
[1759785797092,10.87647521,232.89,232.88,30.78]
[1759785797294,68.6950778,232.83,232.82,33.44]
[1759785797499,10.87647521,232.89,232.82,33.44]
[1759785798195,10.87647521,232.9,232.82,33.44]
[1759785798501,10.87647521,232.9,232.83,30.78]
[1759785799397,10.87647521,232.88,232.84,31.44]
[1759785799696,10.87647521,232.89,232.85,0.68]
[1759785799898,10.87647521,232.89,232.86,0.68]
[1759785800081,2.51619756,232.91,232.82,37.73516364]
[1759785800082,10.87647521,232.9,232.87,31.46]
[1759785800284,10.87647521,232.9,232.88,30.76]
[1759785801299,12.85598478,232.9,232.88,30.76]
[1759785801799,10.87647521,232.9,232.88,30.76]
[1759785802188,21.3366419,232.93,232.89,0.68]
[1759785802374,10.87647521,232.92,232.89,0.68]
[1759785802577,10.87647521,232.92,232.88,30.76]
[1759785802794,10.87647521,232.92,232.88,31.44]
[1759785803481,15.16980799,232.92,232.88,31.44]
[1759785803673,10.87647521,232.92,232.88,31.44]
[1759785803877,10.87647521,232.92,232.89,0.68]
[1759785804996,10.87647521,232.92,232.83,10.73719341]
[1759785804997,65.02581489,232.87,232.83,10.73719341]
[1759785806206,65.02581489,232.87,232.84,30.74]
[1759785806989,65.02581489,232.87,232.85,0.68]
[1759785807391,10.87647521,232.88,232.82,33.44]
[1759785807588,10.87647521,232.83,232.82,33.44]
[1759785807788,11.58647521,232.83,232.82,64.2]
[1759785809581,10.87647521,232.91,232.82,69.17516364]
[1759785809797,10.87647521,232.91,232.83,0.68]
[1759785810000,4.29301949,232.94,232.83,0.68]
[1759785810001,10.87647521,232.93,232.83,0.68]
[1759785810507,11.58647521,232.96,232.84,15.03178147]
[1759785810695,12.12304801,232.96,232.85,31.48]
[1759785810879,12.12304801,232.96,232.86,0.68]
[1759785811496,16.41568387,232.96,232.87,4.29424142]
[1759785811700,12.12304801,232.96,232.88,31.48]
[1759785812290,16.41564678,232.96,232.88,31.48]
[1759785813391,16.41564678,232.96,232.89,4.29387264]
[1759785813687,12.12304801,232.96,232.9,0.68]
[1759785813991,12.12304801,232.96,232.91,30.76]
[1759785814294,10.87647521,232.94,232.91,30.76]
[1759785815684,10.87647521,232.94,232.91,35.7333788]
[1759785815922,1.24654977,232.97,232.91,35.7333788]
[1759785815923,10.87647521,232.96,232.92,0.68]
[1759785816083,10.87647521,232.96,232.91,35.0533788]
[1759785816084,10.87647521,232.96,232.93,0.68]
[1759785816288,0.71,233.0,232.94,31.43]
[1759785816503,10.87647521,233.0,232.94,31.43]
[1759785817187,10.87647521,233.0,232.91,4.2933788]
[1759785817188,10.87647521,232.98,232.91,4.2933788]
[1759785817385,10.87647521,232.96,232.92,30.74]
[1759785817610,10.87647521,232.97,232.92,35.03327436]
[1759785817793,10.87647521,232.97,232.73,50.28892598]
[1759785817794,10.87647521,232.89,232.8,0.79]
[1759785817999,10.87647521,232.87,232.82,30.74]
[1759785818200,10.87647521,232.85,232.82,30.74]
[1759785818409,10.87647521,232.83,232.82,30.74]
[1759785818711,11.57647521,232.83,232.82,30.74]
[1759785819491,15.8712627,232.85,232.82,30.74]
[1759785819694,10.87647521,232.83,232.82,30.74]
[1759785820397,0.7,232.83,232.82,30.74]
[1759785820616,0.7,232.83,232.82,30.92]
[1759785821105,4.83161377,232.85,232.82,30.92]
[1759785821297,10.87647521,232.86,232.82,30.92]
[1759785821610,15.1709837,232.86,232.82,30.92]
[1759785822327,10.87647521,232.86,232.82,30.92]
[1759785822516,20.8,232.89,232.83,0.69]
[1759785822812,10.87647521,232.88,232.83,0.69]
[1759785822996,13.55598478,232.9,232.83,0.69]
[1759785823313,10.87647521,232.88,232.83,0.69]
[1759785823496,10.87647521,232.9,232.85,4.29461026]
[1759785823821,0.7,232.92,232.86,31.61]
[1759785823822,1.23666494,232.92,232.86,31.61]
[1759785823993,10.87647521,232.91,232.86,31.61]
[1759785824199,10.87647521,232.91,232.87,0.69]
[1759785825328,10.87647521,232.91,232.87,4.98419841]
[1759785825817,10.87647521,232.93,232.88,0.69]
[1759785826008,11.57647521,232.93,232.89,30.9]
[1759785826322,11.57647521,232.93,232.81,17.63429752]
[1759785826323,10.87647521,232.87,232.81,17.63429752]
[1759785826626,12.85598478,232.85,232.82,31.06]
[1759785826831,10.87647521,232.83,232.82,31.06]
[1759785827014,10.87647521,232.86,232.81,17.63429752]
[1759785827213,10.87647521,232.86,232.82,31.08]
[1759785827432,15.87097551,232.86,232.82,31.08]
[1759785827600,11.57647521,232.86,232.82,31.08]
[1759785828714,15.17094433,232.86,232.82,31.76]
[1759785828922,10.87647521,232.86,232.82,31.76]
[1759785829214,10.87647521,232.88,232.83,0.68]
[1759785829416,10.87647521,232.88,232.82,35.3751471]
[1759785829719,10.87647521,232.88,232.84,0.68]
[1759785829904,10.87647521,232.88,232.85,31.06]
[1759785830416,10.87647521,232.89,232.85,31.06]
[1759785830623,10.87647521,232.89,232.85,31.74]
[1759785831024,10.87647521,232.9,232.85,35.35458528]
[1759785831231,10.87647521,232.9,232.86,0.68]
[1759785831434,26.32816963,232.93,232.87,0.68]
[1759785831732,10.87647521,232.92,232.88,31.04]
[1759785831933,10.87647521,232.92,232.88,31.72]
[1759785832518,10.87647521,232.92,232.89,0.68]
[1759785833626,0.53661887,232.94,232.89,4.29384049]
[1759785833821,10.87647521,232.94,232.9,0.68]
[1759785835034,10.87647521,232.94,232.91,31.68]
[1759785835226,10.87647521,232.94,232.91,31.0]
[1759785835427,10.87647521,232.94,232.92,31.0]
[1759785836544,10.87647521,232.94,232.92,31.68]
[1759785837849,10.87647521,232.98,232.93,0.68]
[1759785838046,0.71,233.0,232.94,0.68]
[1759785838246,10.87647521,232.99,232.94,0.68]
[1759785838454,10.87647521,232.99,232.95,0.68]
[1759785838626,10.87647521,232.99,232.96,30.96]
[1759785839331,10.87647521,232.99,232.95,0.68]
[1759785839532,15.16852201,232.99,232.96,30.96]
[1759785839738,10.87647521,232.99,232.96,31.64]
[1759785840424,10.87647521,233.0,232.96,31.64]
[1759785840620,15.16832717,233.0,232.96,31.64]
[1759785841047,10.87647521,233.01,232.97,0.68]
[1759785841342,11.58647521,233.01,232.96,30.96]
[1759785841548,15.87826641,233.01,232.96,31.64]
[1759785842528,15.16826641,233.01,232.96,35.93257017]
[1759785842756,10.87647521,233.03,232.97,0.68]
[1759785843135,17.98896602,233.04,232.97,0.68]
[1759785843748,15.16758403,233.04,232.97,4.97227824]
[1759785844053,15.16758403,233.04,232.98,0.68]
[1759785844765,0.53634257,233.06,232.98,0.68]
[1759785844931,10.87647521,233.07,232.98,0.68]
[1759785845266,10.87647521,233.1,232.98,0.68]
[1759785845553,10.87647521,233.08,232.98,0.68]
[1759785845759,10.87647521,233.08,232.99,15.02210395]
[1759785845943,10.87647521,233.08,233.0,31.6]
[1759785846260,11.58647521,233.12,233.01,0.68]
[1759785846427,10.87647521,233.1,233.01,0.68]
[1759785847148,10.87647521,233.11,233.01,0.68]
[1759785847340,10.87647521,233.11,233.03,4.29129296]
[1759785847536,10.87647521,233.12,233.04,0.68]
[1759785847729,10.87647521,233.12,233.04,31.6]
[1759785848053,0.71,233.13,233.05,0.68]
[1759785848252,10.87647521,233.14,233.05,0.68]
[1759785848728,10.87647521,233.15,233.06,30.9]
[1759785848925,10.87647521,233.15,233.07,0.68]
[1759785849351,10.87647521,233.15,233.08,4.2903724]
[1759785849545,10.87647521,233.15,233.09,0.68]
[1759785849748,0.71,233.16,233.09,0.68]
[1759785849950,11.78647521,233.18,233.09,0.68]
[1759785851245,11.78647521,233.18,233.1,4.29000429]
[1759785851454,11.78647521,233.18,233.11,31.58]
[1759785851741,61.42581489,233.17,233.11,31.58]
[1759785852361,61.42581489,233.17,233.11,30.9]
[1759785852663,61.42581489,233.17,233.12,0.68]
[1759785852868,61.42581489,233.17,233.13,0.68]
[1759785853232,61.42581489,233.17,233.14,0.68]
[1759785854341,0.2,233.18,233.15,0.68]
[1759785854664,0.2,233.18,233.16,30.86]
[1759785854832,0.2,233.18,233.17,0.68]
[1759785855266,0.2,233.18,233.17,4.96871638]
[1759785855674,0.2,233.18,233.17,4.28871638]
[1759785855870,0.2,233.18,233.17,4.96871638]
[1759785856173,0.2,233.18,233.17,35.84871638]
[1759785856760,0.2,233.18,233.17,4.96871638]
[1759785856951,0.2,233.18,233.13,0.68]
[1759785857151,0.2,233.18,233.14,35.84925415]
[1759785857353,0.2,233.18,233.14,46.57242477]
[1759785857550,0.2,233.18,233.15,0.68]
[1759785859274,0.2,233.18,233.17,20.8]
[1759785859472,0.2,233.18,233.17,25.78871638]
[1759785860455,0.2,233.2,233.17,36.51050734]
[1759785860659,0.2,233.2,233.18,31.58]
[1759785860871,0.2,233.21,233.18,31.58]
[1759785861071,0.69,233.32,233.19,0.7]
[1759785861281,0.69,233.32,233.19,6.65740077]
[1759785861517,0.69,233.32,233.2,15.70857632]
[1759785861780,0.69,233.31,233.21,6.65740077]
[1759785861957,0.69,233.31,233.22,31.58]
[1759785862159,0.69,233.31,233.23,0.7]
[1759785862371,0.69,233.31,233.23,6.65740077]
[1759785862573,0.69,233.31,233.23,5.95740077]
[1759785862789,0.69,233.31,233.24,0.7]
[1759785862980,10.87647521,233.3,233.25,30.88]
[1759785863362,10.87647521,233.3,233.25,35.16717682]
[1759785863685,0.69,233.29,233.25,35.16717682]
[1759785863858,0.69,233.29,233.25,30.88]
[1759785864275,0.69,233.31,233.25,35.16721508]
[1759785864472,10.87647521,233.3,233.25,35.16721508]
[1759785864765,11.56647521,233.3,233.25,35.16721508]
[1759785865565,0.69,233.33,233.26,0.7]
[1759785866784,10.87647521,233.34,233.26,0.7]
[1759785867188,11.56647521,233.34,233.26,0.7]
[1759785867682,11.56647521,233.34,233.25,35.16721508]
[1759785867883,11.56647521,233.34,233.26,0.7]
[1759785870877,11.56647521,233.34,233.27,4.28687786]
[1759785871483,11.56647521,233.34,233.22,20.8]
[1759785871484,17.97034693,233.32,233.23,25.08761308]
[1759785871661,0.69,233.31,233.24,30.78]
[1759785871861,10.87647521,233.29,233.2,33.44]
[1759785872087,7.09387172,233.25,233.21,30.8]
[1759785872291,0.69,233.24,233.21,30.8]
[1759785872478,0.69,233.23,233.21,30.8]
[1759785872798,0.69,233.22,233.21,30.8]
[1759785873479,0.69,233.22,233.21,30.78]
[1759785875207,11.56647521,233.22,233.21,30.78]
[1759785876004,11.56647521,233.22,233.2,33.44]
[1759785876305,11.53647521,233.22,233.21,30.78]
[1759785878077,18.63034693,233.22,233.21,30.78]
[1759785878291,22.91814385,233.22,233.21,30.78]
[1759785880378,23.45411846,233.22,233.21,30.78]
[1759785881081,31.67647521,233.18,233.09,4.29018458]
[1759785881397,7.09387172,233.14,233.1,30.74]
[1759785881825,7.09387172,233.14,233.1,31.4]
[1759785883022,13.9668194,233.15,233.1,35.68999889]
[1759785883200,14.6268194,233.15,233.1,35.68999889]
[1759785885594,3.09034419,233.14,233.1,35.68999889]
[1759785886023,3.09034419,233.14,233.1,4.94999889]
[1759785886201,3.09034419,233.14,233.11,30.7]
[1759785887605,14.6268194,233.15,233.11,31.36]
[1759785887918,3.09034419,233.13,233.11,30.7]
[1759785888121,10.87647521,233.12,233.11,30.7]
[1759785888305,11.54647521,233.12,233.11,30.7]
[1759785888504,10.87647521,233.12,233.11,30.7]
[1759785888912,0.67,233.17,233.11,35.66976571]
[1759785889118,10.87647521,233.16,233.11,35.66976571]
[1759785889421,10.87647521,233.16,233.12,0.68]
[1759785890108,10.87647521,233.16,233.12,4.9695684]
[1759785890307,11.54647521,233.16,233.12,4.9695684]
[1759785890940,10.87647521,233.12,233.11,30.7]
[1759785891097,11.54647521,233.12,233.11,30.7]
[1759785891296,11.54647521,233.12,233.11,30.72]
[1759785892026,15.83611144,233.12,233.11,30.72]
[1759785892413,16.37231596,233.12,233.11,30.72]
[1759785894304,19.46266015,233.12,233.11,30.72]
[1759785896814,10.87647521,233.08,233.05,33.42]
[1759785897002,10.87647521,233.08,233.06,30.7]
[1759785897623,13.9668194,233.08,233.06,30.7]
[1759785897821,72.14936483,233.14,233.06,30.7]
[1759785897822,0.67,233.16,233.07,0.68]
[1759785898019,10.87647521,233.15,233.07,0.68]
[1759785898223,10.87647521,233.15,233.08,4.2903724]
[1759785898427,10.87647521,233.15,233.09,0.68]
[1759785898611,10.87647521,233.15,233.1,30.7]
[1759785898818,10.87647521,233.16,233.11,0.68]
[1759785899219,10.87647521,233.16,233.12,0.68]
[1759785899412,10.87647521,233.16,233.13,0.68]
[1759785899625,10.87647521,233.16,233.14,30.7]
[1759785899931,10.87647521,233.17,233.14,31.38]
[1759785900128,10.87647521,233.17,233.14,30.7]
[1759785900361,3.09034419,233.16,233.14,30.7]
[1759785900526,3.76034419,233.16,233.14,30.7]
[1759785900707,3.09034419,233.16,233.14,30.7]
[1759785901043,3.76034419,233.16,233.14,30.7]
[1759785901240,14.6368194,233.15,233.14,30.7]
[1759785901405,10.87647521,233.13,233.05,33.42]
[1759785901710,13.9668194,233.07,233.06,30.68]
[1759785902711,10.87647521,233.07,233.06,31.36]
[1759785902911,10.87647521,233.13,233.06,46.37759203]
[1759785903121,10.87647521,233.13,233.07,0.68]
[1759785903311,20.8,233.15,233.07,0.68]
[1759785903312,10.87647521,233.14,233.07,0.68]
[1759785903514,0.67,233.23,233.07,0.68]
[1759785903714,4.80697528,233.22,233.09,20.8]
[1759785903922,4.80697528,233.23,233.11,15.01437089]
[1759785904107,10.87647521,233.22,233.12,0.68]
[1759785904308,15.68345049,233.22,233.12,0.68]
[1759785904730,10.87647521,233.23,233.12,0.68]
[1759785904913,15.68345049,233.23,233.12,0.68]
[1759785905435,2.90733932,233.27,233.14,20.8]
[1759785905617,15.68345049,233.26,233.15,31.42]
[1759785905820,10.87647521,233.26,233.17,15.01050734]
[1759785906114,10.87647521,233.26,233.18,0.68]
[1759785906437,10.87647521,233.27,233.19,30.76]
[1759785906614,4.80697528,233.28,233.2,0.68]
[1759785906615,10.87647521,233.28,233.2,0.68]
[1759785907120,10.87647521,233.28,233.21,15.00793275]
[1759785907323,10.87647521,233.28,233.21,15.68793275]
[1759785907813,10.87647521,233.25,233.19,4.28821212]
[1759785908012,10.87647521,233.25,233.2,30.74]
[1759785908227,15.68345049,233.25,233.21,0.68]
[1759785908714,15.68345049,233.26,233.21,0.68]
[1759785909116,15.68345049,233.26,233.21,4.96790457]
[1759785910037,15.68345049,233.26,233.22,0.68]
[1759785910234,10.87647521,233.28,233.22,0.68]
[1759785911235,10.87647521,233.29,233.23,15.00664579]
[1759785911435,10.87647521,233.29,233.24,30.7]
[1759785911731,5.47697528,233.28,233.24,30.7]
[1759785911928,0.67,233.28,233.24,30.7]
[1759785912520,0.67,233.28,233.24,34.98734327]
[1759785912843,5.47697528,233.28,233.24,30.7]
[1759785913022,0.67,233.28,233.24,34.98742048]
[1759785914041,10.87647521,233.29,233.24,35.66742048]
[1759785914221,16.35345049,233.29,233.24,35.66742048]
[1759785914424,15.68345049,233.29,233.25,0.68]
[1759785914944,15.68345049,233.29,233.25,4.96710855]
[1759785915822,0.53569898,233.34,233.26,0.68]
[1759785916137,10.87647521,233.31,233.26,0.68]
[1759785916349,4.80697528,233.29,233.23,4.28743983]
[1759785916515,4.28562183,233.34,233.24,30.66]
[1759785916516,4.80697528,233.27,233.24,30.66]
[1759785917425,5.47697528,233.27,233.24,30.66]
[1759785917740,5.47697528,233.27,233.25,30.66]
[1759785917953,21.33574489,233.32,233.18,11.40113201]
[1759785917954,10.87647521,233.25,233.18,11.40113201]
[1759785918126,10.87647521,233.23,233.19,30.64]
[1759785918443,15.68345049,233.23,233.19,35.58834855]
[1759785919044,15.68345049,233.23,233.2,30.68]
[1759785919827,11.58647521,233.25,233.2,34.96809591]
[1759785920143,4.28712801,233.26,233.2,34.96809591]
[1759785920144,10.87647521,233.23,233.2,34.96809591]